bitfinex/quotes_BTCUSD_20251027
["timestamp","ask_amount","ask_price","bid_price","bid_amount"]
[1761558549888,1.18081605,115260.0,115250.0,0.15452]
[1761558550085,0.51352073,115260.0,115250.0,0.15452]
[1761558552342,0.17352073,115260.0,115250.0,0.81571309]
[1761558552545,0.66986461,115270.0,115250.0,0.81571309]
[1761558552751,0.18220731,115270.0,115250.0,0.81571309]
[1761558552958,0.17352073,115260.0,115250.0,0.32805579]
[1761558553390,0.18220731,115270.0,115250.0,0.32805579]
[1761558553825,0.51352747,115280.0,115260.0,0.19087259]
[1761558554051,0.51352747,115280.0,115270.0,0.20804]
[1761558554273,1.00118477,115280.0,115270.0,0.20804]
[1761558555099,0.51352747,115280.0,115270.0,0.20804]
[1761558555303,1.00118477,115280.0,115270.0,0.20804]
[1761558555606,1.09100378,115280.0,115270.0,0.20804]
[1761558556074,1.09500378,115280.0,115270.0,0.20804]
[1761558556505,0.60734648,115280.0,115270.0,0.20804]
[1761558556740,1.09500378,115280.0,115270.0,0.20804]
[1761558561868,1.00518477,115280.0,115270.0,0.20804]
[1761558565409,0.17352467,115260.0,115240.0,0.20840811]
[1761558565625,0.66118197,115260.0,115250.0,0.208]
[1761558565831,0.17352467,115260.0,115250.0,0.208]
[1761558566033,0.66118197,115260.0,115250.0,0.208]
[1761558566233,0.17352467,115260.0,115250.0,0.208]
[1761558567045,0.23874249,115260.0,115240.0,0.27219315]
[1761558567184,0.66118197,115260.0,115250.0,0.208]
[1761558567797,0.66118197,115260.0,115250.0,0.21]
[1761558573946,1.00118197,115260.0,115250.0,0.21]
[1761558575080,1.00118197,115260.0,115250.0,0.002]
[1761558575287,1.00118197,115260.0,115250.0,0.21]
[1761558575490,1.09100098,115260.0,115250.0,0.21]
[1761558576070,1.09100098,115260.0,115250.0,0.002]
[1761558576274,1.09100098,115260.0,115250.0,0.21]
[1761558576495,1.09100098,115260.0,115250.0,0.002]
[1761558576740,1.57865828,115260.0,115250.0,0.21]
[1761558576940,1.57865828,115260.0,115250.0,0.002]
[1761558576941,1.66847729,115260.0,115250.0,0.002]
[1761558577115,1.66847729,115260.0,115250.0,0.21]
[1761558580783,1.66847729,115260.0,115250.0,0.208]
[1761558581001,0.69416269,115260.0,115250.0,0.209]
[1761558581206,1.66947729,115260.0,115250.0,0.209]
[1761558581883,1.12787347,115260.0,115250.0,0.209]
[1761558584261,1.12787347,115260.0,115250.0,0.001]
[1761558584462,1.12787347,115260.0,115250.0,0.15348]
[1761558586099,1.12787347,115260.0,115250.0,0.001]
[1761558586317,1.12787347,115260.0,115250.0,0.15348]
[1761558588768,0.69416269,115260.0,115250.0,0.15348]
[1761558589193,1.12787347,115260.0,115250.0,0.15348]
[1761558591297,1.13598888,115260.0,115250.0,0.15348]
[1761558594129,1.13598904,115260.0,115250.0,0.15348]
[1761558599198,0.61245925,115260.0,115250.0,0.15348]
[1761558600366,1.04617003,115260.0,115250.0,0.15348]
[1761558603122,1.04617899,115260.0,115250.0,0.15348]
[1761558603899,0.61246821,115260.0,115250.0,0.15348]
[1761558604103,1.04617899,115260.0,115250.0,0.15348]
[1761558604330,1.135998,115260.0,115250.0,0.15348]
[1761558608489,1.15472216,115260.0,115250.0,0.15348]
[1761558609112,1.15472216,115260.0,115250.0,0.001]
[1761558609326,2.70504044,115260.0,115250.0,0.001]
[1761558609871,2.54260744,115260.0,115250.0,0.001]
[1761558610699,1.70912244,115260.0,115250.0,0.001]
[1761558613852,1.67294016,115260.0,115250.0,0.001]
[1761558614059,1.70912244,115260.0,115250.0,0.001]
[1761558614263,1.87160244,115260.0,115250.0,0.001]
[1761558614491,1.90013294,115260.0,115250.0,0.001]
[1761558614699,1.92348856,115260.0,115250.0,0.001]
[1761558615095,1.94953347,115260.0,115250.0,0.001]
[1761558616083,0.54971807,115250.0,115240.0,0.00014581]
[1761558616297,3.50670945,115250.0,115240.0,1e-08]
[1761558616527,3.53787584,115250.0,115240.0,1e-08]
[1761558616840,3.56392529,115250.0,115240.0,1e-08]
[1761558617420,3.27881842,115250.0,115240.0,1e-08]
[1761558617613,3.28281842,115250.0,115240.0,1e-08]
[1761558618253,3.31398481,115250.0,115240.0,1e-08]
[1761558618458,3.28281842,115250.0,115240.0,1e-08]
[1761558618656,3.31398481,115250.0,115240.0,1e-08]
[1761558619039,3.31498481,115250.0,115240.0,1e-08]
[1761558620277,3.28381842,115250.0,115240.0,1e-08]
[1761558620519,3.30004063,115250.0,115240.0,1e-08]
[1761558620888,3.54844063,115250.0,115240.0,1e-08]
[1761558622501,3.53844064,115250.0,115240.0,1e-08]
[1761558622706,3.54844063,115250.0,115240.0,1e-08]
[1761558623966,3.54841238,115250.0,115240.0,1e-08]
[1761558625534,3.53841239,115250.0,115240.0,1e-08]
[1761558625739,3.54841238,115250.0,115240.0,1e-08]
[1761558626436,3.53841239,115250.0,115240.0,1e-08]
[1761558626889,3.54841238,115250.0,115240.0,1e-08]
[1761558627295,1.91027311,115250.0,115240.0,1e-08]
[1761558628576,1.9202731,115250.0,115240.0,1e-08]
[1761558630131,1.89691748,115250.0,115240.0,1e-08]
[1761558630543,1.9202731,115250.0,115240.0,1e-08]
[1761558630981,2.35398388,115250.0,115240.0,1e-08]
[1761558631640,2.38251438,115250.0,115240.0,1e-08]
[1761558633357,2.41368077,115250.0,115240.0,1e-08]
[1761558634339,2.50501077,115250.0,115240.0,1e-08]
[1761558635132,2.48165515,115250.0,115240.0,1e-08]
[1761558636757,2.52826713,115250.0,115240.0,1e-08]
[1761558637207,2.25323171,115250.0,115240.0,1e-08]
[1761558637794,0.94730682,115210.0,115200.0,0.05]
[1761558637996,1.135051,115210.0,115200.0,0.05048631]
[1761558638600,1.16110464,115210.0,115200.0,0.05048631]
[1761558638806,1.19728692,115210.0,115200.0,0.05048631]
[1761558639457,1.19728692,115210.0,115200.0,0.05548631]
[1761558640335,1.19728692,115210.0,115200.0,0.05048631]
[1761558640762,1.19728692,115210.0,115200.0,0.05248631]
[1761558641436,1.16970426,115210.0,115200.0,0.05248631]
[1761558641642,0.73599348,115210.0,115200.0,0.05248631]
[1761558641887,1.2242963,115210.0,115200.0,0.05248631]
[1761558642389,1.2242963,115210.0,115200.0,1.30988318]
[1761558642390,0.00810616,115210.0,115200.0,1.30988318]
[1761558642597,0.1822652,115240.0,115220.0,0.1735777]
[1761558642817,0.18166277,115240.0,115230.0,0.38188591]
[1761558643043,0.52166277,115240.0,115230.0,0.38188591]
[1761558643270,0.67065826,115250.0,115230.0,0.38188591]
[1761558643271,0.18235544,115250.0,115230.0,0.87018873]
[1761558643504,0.28028368,115250.0,115230.0,0.87018873]
[1761558643711,0.37010269,115250.0,115230.0,0.87018873]
[1761558643920,0.51355085,115240.0,115230.0,0.87018873]
[1761558644676,0.27217445,115250.0,115230.0,0.87018873]
[1761558644890,0.18164529,115250.0,115240.0,0.17355085]
[1761558645092,0.52164529,115250.0,115240.0,0.17355085]
[1761558645689,0.6114643,115250.0,115240.0,0.17355085]
[1761558645912,0.34,115240.0,115230.0,0.87018873]
[1761558646108,0.001,115250.0,115240.0,0.17355085]
[1761558646394,0.001,115250.0,115240.0,0.66185367]
[1761558647018,0.341,115250.0,115240.0,0.66185367]
[1761558647647,0.34,115250.0,115240.0,0.66185367]
[1761558647851,0.34,115250.0,115240.0,0.66285367]
[1761558649412,0.51353579,115250.0,115240.0,0.66285367]
[1761558651304,0.34,115250.0,115240.0,0.66285367]
[1761558651665,0.1822007,115260.0,115250.0,0.17353579]
[1761558651856,0.5222007,115260.0,115250.0,0.32625579]
[1761558653007,0.5242007,115260.0,115250.0,0.32625579]
[1761558653347,0.5242007,115260.0,115250.0,0.15272]
[1761558653596,0.61201971,115260.0,115250.0,0.15272]
[1761558653988,0.61301971,115260.0,115250.0,0.15372]
[1761558654620,0.61201971,115260.0,115250.0,0.15372]
[1761558655393,0.61201971,115260.0,115250.0,0.15272]
[1761558655623,0.17354457,115250.0,115230.0,0.17370512]
[1761558655850,0.7516664,115250.0,115240.0,0.2082]
[1761558657467,0.7516664,115250.0,115240.0,0.2112]
[1761558657689,0.26336358,115250.0,115240.0,0.38475085]
[1761558657867,0.7516664,115250.0,115240.0,0.38475085]
[1761558658279,0.26336358,115250.0,115240.0,0.38475085]
[1761558658597,0.7516664,115250.0,115240.0,0.38475085]
[1761558659770,0.61201971,115260.0,115240.0,0.87305367]
[1761558660520,0.17353579,115250.0,115240.0,0.38475085]
[1761558661782,0.17353579,115250.0,115240.0,0.38175085]
[1761558662299,0.17353579,115250.0,115240.0,0.38475085]
[1761558662639,0.17353579,115250.0,115240.0,0.38175085]
[1761558662787,0.17353579,115250.0,115240.0,0.38475085]
[1761558663426,0.75165762,115250.0,115240.0,0.003]
[1761558663629,0.75165762,115250.0,115240.0,0.21116]
[1761558663828,0.75165762,115250.0,115240.0,0.003]
[1761558663992,0.75165762,115250.0,115240.0,0.21116]
[1761558664832,0.77769877,115250.0,115240.0,0.21116]
[1761558665259,0.02604115,115250.0,115240.0,0.38471085]
[1761558665830,0.02604115,115250.0,115240.0,0.87301367]
[1761558666270,0.19100354,115270.0,115250.0,0.17352478]
[1761558666475,0.18223407,115280.0,115260.0,0.83181562]
[1761558666651,0.17350568,115270.0,115260.0,0.32616073]
[1761558666857,0.02603571,115270.0,115260.0,0.86998355]
[1761558667077,0.36603571,115270.0,115260.0,0.86998355]
[1761558667664,0.53954139,115270.0,115260.0,0.86998355]
[1761558667841,0.36603571,115270.0,115260.0,0.86998355]
[1761558668287,0.53954139,115270.0,115260.0,0.86998355]
[1761558668492,0.54054139,115270.0,115260.0,0.86998355]
[1761558668728,0.54054139,115270.0,115260.0,1.44810538]
[1761558668729,0.001,115270.0,115260.0,1.44810538]
[1761558669149,0.001,115270.0,115260.0,0.95980256]
[1761558669544,0.003,115270.0,115260.0,0.95980256]
[1761558670131,0.002,115270.0,115260.0,0.95980256]
[1761558670305,0.22332626,115290.0,115270.0,0.17349213]
[1761558670505,0.23141628,115290.0,115280.0,0.15264]
[1761558671674,0.23156192,115290.0,115280.0,0.15264]
[1761558671878,0.23156192,115290.0,115280.0,0.32613063]
[1761558672403,0.23256192,115290.0,115280.0,0.32613063]
[1761558673110,0.22395476,115290.0,115280.0,0.32613063]
[1761558673244,0.04170724,115290.0,115280.0,0.81443345]
[1761558673462,0.01567635,115290.0,115280.0,0.90425246]
[1761558673679,0.00758633,115290.0,115280.0,0.90425246]
[1761558674297,0.01468628,115290.0,115280.0,0.90425246]
[1761558675200,0.01468628,115290.0,115280.0,0.90725246]
[1761558680050,0.01468628,115290.0,115280.0,0.66479345]
[1761558680267,0.01468628,115290.0,115280.0,0.38469063]
[1761558680476,0.01468628,115290.0,115280.0,0.87299345]
[1761558680681,0.01468628,115290.0,115280.0,0.38469063]
[1761558680886,0.01468628,115290.0,115280.0,0.87299345]
[1761558682617,0.01468628,115290.0,115280.0,0.38469063]
[1761558682880,0.01468628,115290.0,115280.0,0.87299345]
[1761558684862,0.01466314,115290.0,115280.0,0.87299345]
[1761558687873,0.01466314,115290.0,115280.0,0.38469063]
[1761558688074,0.01466314,115290.0,115280.0,0.87299345]
[1761558692555,0.01466314,115290.0,115280.0,0.38469063]
[1761558692755,0.01466314,115290.0,115280.0,0.87299345]
[1761558696005,0.01466314,115290.0,115280.0,0.8525646]
[1761558697482,0.01466314,115290.0,115280.0,0.94238361]
[1761558700400,0.01466314,115290.0,115280.0,0.98859943]
[1761558703808,0.01466314,115290.0,115280.0,0.93350037]
[1761558705843,0.00658633,115290.0,115280.0,0.93350037]
[1761558714052,0.00658633,115290.0,115280.0,0.4102376]
[1761558714578,0.00658633,115290.0,115280.0,0.2022776]
[1761558714777,0.00658633,115290.0,115280.0,0.5836776]
[1761558715385,0.00658633,115290.0,115280.0,0.04921582]
[1761558715386,0.19882842,115290.0,115280.0,0.04921582]
[1761558715584,0.26873941,115290.0,115280.0,0.21096]
[1761558715959,0.70194317,115290.0,115280.0,0.21096]
[1761558716237,0.26873941,115290.0,115280.0,0.21096]
[1761558716445,0.26874013,115290.0,115280.0,0.21096]
[1761558717150,0.18819085,115290.0,115280.0,0.21096]
[1761558717478,0.18819085,115290.0,115280.0,0.20796]
[1761558718335,0.18006191,115290.0,115280.0,0.20896]
[1761558721369,1.0512033,115290.0,115280.0,0.001]
[1761558721591,1.0512033,115290.0,115280.0,0.15348]
[1761558721768,1.17720459,115290.0,115280.0,0.15348]
[1761558722172,1.20324242,115290.0,115280.0,0.15248]
[1761558723319,0.64403737,115290.0,115280.0,0.15248]
[1761558723721,0.54609974,115290.0,115280.0,0.15248]
[1761558724168,0.52006191,115290.0,115280.0,0.15248]
[1761558724579,0.54609389,115290.0,115280.0,0.15248]
[1761558725156,0.54709389,115290.0,115280.0,0.15248]
[1761558725476,0.6369129,115290.0,115280.0,0.15248]
[1761558725834,1.07011666,115290.0,115280.0,0.15248]
[1761558726681,0.6369129,115290.0,115280.0,0.15248]
[1761558728160,1.07011666,115290.0,115280.0,0.15248]
[1761558728712,0.17350568,115270.0,115260.0,0.17352073]
[1761558728912,0.17350568,115270.0,115260.0,0.38156073]
[1761558730867,0.17350568,115270.0,115260.0,0.38256073]
[1761558734811,0.17350568,115270.0,115260.0,0.17452073]
[1761558735084,0.17350568,115270.0,115260.0,0.38256073]
[1761558736207,0.17350568,115270.0,115260.0,0.20904]
[1761558736530,0.17350568,115270.0,115260.0,0.38256073]
[1761558741193,0.27855469,115290.0,115270.0,0.17350333]
[1761558741435,0.27855469,115290.0,115280.0,0.15252]
[1761558743952,0.32464744,115290.0,115280.0,0.15352]
[1761558744808,0.3506815,115290.0,115280.0,0.15352]
[1761558746372,0.30458875,115290.0,115280.0,0.15352]
[1761558746764,0.27855469,115290.0,115280.0,0.15352]
[1761558747858,0.18873568,115290.0,115280.0,0.32701063]
[1761558748029,0.18006191,115290.0,115280.0,0.76021439]
[1761558748483,0.18006191,115290.0,115280.0,0.32701063]
[1761558750221,0.00658633,115290.0,115280.0,0.32701063]
[1761558751014,0.18006191,115290.0,115280.0,0.32701063]
[1761558752141,0.18006191,115290.0,115280.0,0.15348]
[1761558752142,0.21541416,115290.0,115280.0,0.15348]
[1761558752306,0.21541416,115290.0,115280.0,0.001]
[1761558752660,0.21541416,115290.0,115280.0,0.20896]
[1761558752813,0.21541416,115290.0,115280.0,0.001]
[1761558753008,0.21541416,115290.0,115280.0,0.20896]
[1761558753361,0.18006191,115290.0,115280.0,0.20896]
[1761558759178,0.20609362,115290.0,115280.0,0.20896]
[1761558761015,0.72911639,115290.0,115280.0,0.001]
[1761558761479,0.72911639,115290.0,115280.0,0.20896]
[1761558761685,0.29591263,115290.0,115280.0,0.20896]
[1761558761841,0.29591263,115290.0,115280.0,0.001]
[1761558762047,0.29591263,115290.0,115280.0,0.20896]
[1761558762256,0.72911639,115290.0,115280.0,0.20896]
[1761558763173,0.8189354,115290.0,115280.0,0.20896]
[1761558765390,1.1589354,115290.0,115280.0,0.20896]
[1761558765613,1.1670557,115290.0,115280.0,0.20896]
[1761558765821,1.70935842,115290.0,115280.0,0.20896]
[1761558766391,1.70935842,115290.0,115280.0,0.20796]
[1761558767522,1.71035842,115290.0,115280.0,0.20796]
[1761558774974,0.64503293,115290.0,115280.0,0.20796]
[1761558775132,0.54709362,115290.0,115280.0,0.20796]
[1761558775385,1.03484686,115290.0,115280.0,0.20796]
[1761558775619,1.12466587,115290.0,115280.0,0.20796]
[1761558777699,1.61241911,115290.0,115280.0,0.20796]
[1761558778161,1.70223812,115290.0,115280.0,0.20796]
[1761558778488,0.17350568,115270.0,115260.0,0.18219637]
[1761558778722,0.17350568,115270.0,115260.0,0.38164073]
[1761558780054,0.17350568,115270.0,115260.0,0.38264073]
[1761558780504,0.17350568,115270.0,115260.0,0.20912]
[1761558780769,0.74733874,115270.0,115260.0,0.05648]
[1761558780996,0.37544236,115270.0,115260.0,0.20912]
[1761558781226,0.8631956,115270.0,115260.0,0.20912]
[1761558781477,0.8631956,115270.0,115260.0,0.2103621]
[1761558781907,0.37544236,115270.0,115260.0,0.2093621]
[1761558782159,0.8631956,115270.0,115260.0,0.2093621]
[1761558782389,0.77711578,115270.0,115260.0,0.2093621]
[1761558783220,0.28936254,115270.0,115260.0,0.2093621]
[1761558783428,0.77711578,115270.0,115260.0,0.2093621]
[1761558784466,0.75107793,115270.0,115260.0,0.2093621]
[1761558784675,0.79691223,115270.0,115260.0,0.2093621]
[1761558785839,0.75107793,115270.0,115260.0,0.2093621]
[1761558790685,0.17350568,115270.0,115260.0,0.2093621]
[1761558793635,0.17350568,115270.0,115260.0,0.87063607]
[1761558799726,0.17350568,115270.0,115260.0,0.38288283]
[1761558799924,0.17350568,115270.0,115260.0,0.87063607]
[1761558803051,0.17350568,115270.0,115260.0,0.38288283]
[1761558803224,0.17350568,115270.0,115260.0,0.2093621]
[1761558804030,0.17350568,115270.0,115260.0,0.38288283]
[1761558811081,0.17322392,115270.0,115260.0,0.38288283]
[1761558811725,0.17322392,115270.0,115260.0,0.87063607]
[1761558814988,0.17322392,115270.0,115260.0,0.38288283]
[1761558815123,0.17322392,115270.0,115260.0,0.87063607]
[1761558817121,0.17350428,115280.0,115260.0,0.87063607]
[1761558817329,0.17350568,115270.0,115260.0,0.86939397]
[1761558819791,0.17350428,115280.0,115260.0,0.86939397]
[1761558819955,0.17350568,115270.0,115260.0,0.86939397]
[1761558825998,0.17350568,115270.0,115260.0,0.38164073]
[1761558826264,0.17350568,115270.0,115260.0,0.86939397]
[1761558826456,0.17350568,115270.0,115260.0,0.87063607]
[1761558827918,0.17350568,115270.0,115260.0,0.38288283]
[1761558830316,0.17350428,115280.0,115260.0,0.38288283]
[1761558830500,0.17350428,115280.0,115260.0,0.38164073]
[1761558830501,0.18163574,115280.0,115260.0,0.38164073]
[1761558830866,0.00813146,115280.0,115260.0,0.38164073]
[1761558831066,0.52162209,115280.0,115270.0,0.17350568]
[1761558831336,0.18873568,115290.0,115270.0,0.17350568]
[1761558831539,0.17349063,115280.0,115270.0,0.17350568]
[1761558831711,0.17349063,115280.0,115270.0,0.15252]
[1761558831893,0.17349063,115280.0,115270.0,0.32602568]
[1761558832443,0.17449063,115280.0,115270.0,0.32602568]
[1761558832828,0.001,115280.0,115270.0,0.32602568]
[1761558833783,0.17449063,115280.0,115270.0,0.32602568]
[1761558834013,0.001,115280.0,115270.0,0.32602568]
[1761558834236,0.18873568,115290.0,115270.0,0.32602568]
[1761558834401,0.19686076,115290.0,115280.0,0.19083969]
[1761558834616,0.19686076,115290.0,115280.0,0.17349063]
[1761558834964,0.00658633,115290.0,115280.0,0.17349063]
[1761558837022,0.18006191,115290.0,115280.0,0.17349063]
[1761558837371,0.18106191,115290.0,115280.0,0.17349063]
[1761558837574,0.18106191,115290.0,115280.0,0.17431997]
[1761558838027,0.18106191,115290.0,115280.0,0.20882934]
[1761558838028,0.70434762,115290.0,115280.0,0.20882934]
[1761558838232,0.18106191,115290.0,115280.0,0.20882934]
[1761558839499,0.18106191,115290.0,115280.0,0.38231997]
[1761558840933,0.18106191,115290.0,115280.0,0.20882934]
[1761558845009,1.04434762,115290.0,115280.0,0.00082934]
[1761558845219,1.14228399,115290.0,115280.0,0.20878934]
[1761558845425,1.168318,115290.0,115280.0,0.20878934]
[1761558847062,0.7348513,115290.0,115280.0,0.20878934]
[1761558847261,1.07849899,115290.0,115280.0,0.20878934]
[1761558850965,0.64503229,115290.0,115280.0,0.20878934]
[1761558851152,1.07849899,115290.0,115280.0,0.20878934]
[1761558854265,0.64503229,115290.0,115280.0,0.20878934]
[1761558854442,1.07849899,115290.0,115280.0,0.20878934]
[1761558857212,1.15168979,115290.0,115280.0,0.20878934]
[1761558860065,1.07849899,115290.0,115280.0,0.20878934]
[1761558863459,0.64503229,115290.0,115280.0,0.20878934]
[1761558863660,1.07849899,115290.0,115280.0,0.20878934]
[1761558874048,1.07849899,115290.0,115280.0,0.2074568]
[1761558875347,1.07851186,115290.0,115280.0,0.2074568]
[1761558877226,1.16833087,115290.0,115280.0,0.2074568]
[1761558880117,0.55522615,115290.0,115280.0,0.2074568]
[1761558881549,0.98869285,115290.0,115280.0,0.2074568]
[1761558883163,0.17350568,115270.0,115260.0,0.18219502]
[1761558883369,0.60697097,115280.0,115260.0,0.39015502]
[1761558884139,0.17350427,115280.0,115260.0,0.39015502]
[1761558885011,0.17350427,115280.0,115270.0,0.17350568]
[1761558885282,0.17350427,115280.0,115260.0,0.39115502]
[1761558885493,0.17350427,115280.0,115270.0,0.17350568]
[1761558886552,0.17350568,115270.0,115260.0,0.39115502]
[1761558886893,0.17350568,115270.0,115260.0,0.38148073]
[1761558887106,0.17352073,115260.0,115250.0,0.18221176]
[1761558887313,0.17352073,115260.0,115250.0,0.20796]
[1761558887314,0.60698743,115260.0,115250.0,0.20796]
[1761558887518,0.17352073,115260.0,115250.0,0.20796]
[1761558887881,0.66139009,115260.0,115250.0,0.38149579]
[1761558888080,0.66139009,115260.0,115250.0,0.20796]
[1761558888953,0.17352073,115260.0,115250.0,0.38149579]
[1761558889135,0.17352073,115260.0,115250.0,0.38211488]
[1761558889518,0.17352073,115260.0,115250.0,0.38511488]
[1761558889928,0.17352073,115260.0,115250.0,0.38211488]
[1761558890108,0.17352073,115260.0,115250.0,0.20957909]
[1761558890513,0.66139009,115260.0,115250.0,0.20957909]
[1761558891896,0.74835084,115260.0,115250.0,0.20957909]
[1761558892584,0.7743893,115260.0,115250.0,0.20957909]
[1761558893179,0.28651994,115260.0,115250.0,0.20957909]
[1761558893385,0.68742855,115260.0,115250.0,0.20957909]
[1761558895803,0.19955919,115260.0,115250.0,0.38311488]
[1761558896437,0.19955919,115260.0,115250.0,0.20957909]
[1761558897806,0.17352073,115260.0,115250.0,0.38311488]
[1761558898034,0.18218096,115270.0,115250.0,0.87098424]
[1761558898035,0.20821723,115270.0,115250.0,0.87098424]
[1761558898240,0.20821723,115270.0,115260.0,0.50522143]
[1761558898448,0.20821723,115270.0,115260.0,0.00041269]
[1761558898652,0.20821723,115270.0,115260.0,0.01776476]
[1761558900390,0.18218096,115270.0,115260.0,0.01776476]
[1761558900605,0.75527323,115270.0,115260.0,0.00041269]
[1761558901238,0.78130891,115270.0,115260.0,0.00041269]
[1761558905315,0.87112792,115270.0,115260.0,0.20841269]
[1761558912872,0.38325856,115270.0,115260.0,0.20841269]
[1761558913072,0.87112792,115270.0,115260.0,0.20841269]
[1761558913275,0.87924794,115270.0,115260.0,0.20841269]
[1761558914905,1.21924794,115270.0,115260.0,0.20841269]
[1761558915113,1.25543022,115270.0,115260.0,0.20841269]
[1761558915317,1.74329958,115270.0,115260.0,0.20841269]
[1761558916129,1.25543022,115270.0,115260.0,0.20841269]
[1761558917796,1.21924794,115270.0,115260.0,0.20841269]
[1761558917923,1.25543022,115270.0,115260.0,0.20841269]
[1761558920943,1.25543364,115270.0,115260.0,0.20841269]
[1761558924996,0.76756428,115270.0,115260.0,0.20841269]
[1761558925213,1.25543364,115270.0,115260.0,0.20841269]
[1761558938897,1.17021073,115270.0,115260.0,0.20841269]
[1761558941352,1.18893715,115270.0,115260.0,0.20841269]
[1761558941953,1.13402845,115270.0,115260.0,0.20841269]
[1761558947512,1.13403464,115270.0,115260.0,0.20841269]
[1761558947746,1.07979353,115270.0,115260.0,0.20841269]
[1761558948642,0.55634627,115270.0,115260.0,0.20841269]
[1761558954733,0.98997452,115270.0,115260.0,0.20841269]
[1761558955623,1.07979353,115270.0,115260.0,0.20841269]
[1761558958684,0.98997452,115270.0,115260.0,0.20841269]
[1761558961452,0.03416531,115270.0,115260.0,0.38193342]
[1761558961662,0.1821788,115280.0,115260.0,0.38193342]
[1761558961954,0.55633593,115280.0,115270.0,0.01735056]
[1761558963159,0.17350568,115270.0,115260.0,0.20841269]
[1761558964051,0.17350568,115270.0,115260.0,0.38193342]
[1761558967792,0.98184104,115280.0,115260.0,0.38193342]
[1761558967997,0.64615216,115280.0,115270.0,0.01735056]
[1761558968197,0.64615216,115280.0,115270.0,0.01755689]
[1761558968724,1.07978041,115280.0,115270.0,0.01755689]
[1761558969897,1.08078041,115280.0,115270.0,0.01755689]
[1761558971118,1.08078041,115280.0,115270.0,0.00020633]
[1761558972153,1.07266005,115280.0,115270.0,0.00020633]
[1761558972354,1.08078058,115280.0,115270.0,0.00020633]
[1761558975713,0.64715233,115280.0,115270.0,0.00020633]
[1761558975921,0.99096157,115280.0,115270.0,0.00020633]
[1761558978891,1.51440883,115280.0,115270.0,0.00020633]
[1761558979074,1.51440883,115280.0,115270.0,0.05572633]
[1761558979297,1.53312505,115280.0,115270.0,0.20812633]
[1761558979474,1.62294406,115280.0,115270.0,0.20812633]
[1761558980446,0.75568756,115280.0,115270.0,0.20812633]
[1761558980647,1.18931581,115280.0,115270.0,0.20812633]
[1761558981690,1.62294406,115280.0,115270.0,0.20812633]
[1761558983211,0.75568756,115280.0,115270.0,0.20812633]
[1761558983414,1.62294406,115280.0,115270.0,0.20812633]
[1761558983959,1.18931581,115280.0,115270.0,0.20812633]
[1761558984180,0.64715233,115280.0,115270.0,0.20812633]
[1761558984374,1.08078058,115280.0,115270.0,0.20812633]
[1761558988230,0.64715233,115280.0,115270.0,0.20812633]
[1761558988467,1.08078058,115280.0,115270.0,0.20812633]
[1761558992232,0.64715233,115280.0,115270.0,0.20812633]
[1761558992441,1.08078058,115280.0,115270.0,0.20812633]
[1761558992825,1.17059959,115280.0,115270.0,0.20812633]
[1761558993448,1.1706006,115280.0,115270.0,0.20812633]
[1761559002364,1.08078159,115280.0,115270.0,0.20812633]
[1761559005154,0.30715334,115280.0,115270.0,0.20812633]
[1761559005407,0.21733433,115280.0,115270.0,0.20812633]
[1761559006381,0.65096258,115280.0,115270.0,0.20812633]
[1761559006564,0.21733433,115280.0,115270.0,0.20812633]
[1761559006774,0.65096258,115280.0,115270.0,0.20812633]
[1761559006988,0.73493241,115280.0,115270.0,0.20812633]
[1761559007801,0.78908956,115280.0,115270.0,0.20812633]
[1761559009514,0.70511973,115280.0,115270.0,0.20812633]
[1761559014909,0.69699819,115280.0,115270.0,0.20812633]
[1761559015244,0.70511909,115280.0,115270.0,0.20812633]
[1761559015456,0.69699819,115280.0,115270.0,0.20812633]
[1761559015897,0.7051189,115280.0,115270.0,0.20812633]
[1761559016100,0.69699819,115280.0,115270.0,0.20812633]
[1761559016535,0.70511878,115280.0,115270.0,0.20812633]
[1761559017412,0.69699819,115280.0,115270.0,0.20812633]
[1761559018047,0.70511869,115280.0,115270.0,0.20812633]
[1761559018423,0.69699819,115280.0,115270.0,0.20812633]
[1761559019254,0.70511862,115280.0,115270.0,0.20812633]
[1761559019476,0.69699819,115280.0,115270.0,0.20812633]
[1761559024909,0.20921279,115280.0,115270.0,0.20812633]
[1761559025097,0.7051185,115280.0,115270.0,0.20812633]
[1761559027291,0.79493751,115280.0,115270.0,0.20812633]
[1761559030741,0.7051185,115280.0,115270.0,0.20812633]
[1761559033007,0.2173331,115280.0,115270.0,0.20812633]
[1761559033217,0.7051185,115280.0,115270.0,0.20812633]
[1761559039966,0.2173331,115280.0,115270.0,0.20812633]
[1761559040171,0.7051185,115280.0,115270.0,0.20812633]
[1761559045089,0.001,115280.0,115270.0,0.86941741]
[1761559046084,0.66784821,115290.0,115280.0,0.17349063]
[1761559046292,0.18006281,115290.0,115280.0,0.17349063]
[1761559047911,0.66784821,115290.0,115270.0,0.38163201]
[1761559048116,0.66784821,115290.0,115280.0,0.17349063]
[1761559048117,0.18006281,115290.0,115280.0,0.17349063]
[1761559048334,0.66784821,115290.0,115280.0,0.17349063]
[1761559048492,0.18006281,115290.0,115280.0,0.17349063]
[1761559049207,0.66784821,115290.0,115280.0,0.17349063]
[1761559049776,0.75766722,115290.0,115270.0,0.38163201]
[1761559049981,0.66127603,115280.0,115270.0,0.17371201]
[1761559050189,0.66127603,115280.0,115270.0,0.55499201]
[1761559050568,0.66127603,115280.0,115270.0,0.38148633]
[1761559050847,1.18091405,115280.0,115270.0,0.22916633]
[1761559051055,1.21506937,115280.0,115270.0,0.38148633]
[1761559051474,1.21506937,115280.0,115270.0,0.38248633]
[1761559052962,1.21606937,115280.0,115270.0,0.38248633]
[1761559053163,1.21606937,115280.0,115270.0,0.38148633]
[1761559053537,1.21606937,115280.0,115270.0,0.38248633]
[1761559053733,1.21606937,115280.0,115270.0,0.38148633]
[1761559054944,1.21606704,115280.0,115270.0,0.38148633]
[1761559060749,1.12624803,115280.0,115270.0,0.38148633]
[1761559069942,1.07208432,115280.0,115270.0,0.38148633]
[1761559071130,1.07208432,115280.0,115270.0,0.20800633]
[1761559079490,0.63846263,115280.0,115270.0,0.20800633]
[1761559081689,1.07208432,115280.0,115270.0,0.20800633]
[1761559094415,1.1520402,115280.0,115270.0,0.20800633]
[1761559094787,1.07208432,115280.0,115270.0,0.20800633]
[1761559096899,0.54864362,115280.0,115270.0,0.20800633]
[1761559098070,0.98226531,115280.0,115270.0,0.20782737]
[1761559100995,0.98227653,115280.0,115270.0,0.20782737]
[1761559111451,0.98227968,115280.0,115270.0,0.20782737]
[1761559113171,1.07209869,115280.0,115270.0,0.20782737]
[1761559129294,0.98227968,115280.0,115270.0,0.20782737]
[1761559130109,0.17350568,115270.0,115260.0,0.17348]
[1761559130314,0.17350568,115270.0,115260.0,0.55484004]
[1761559130716,0.17350568,115270.0,115260.0,0.38132]